lending/lending_fUSD_20250719
["ID","MTS","AMOUNT","RATE_DAILY","PERIOD"]
[373335987,1752951061257,-480.0,0.00019397,2]
[373335988,1752951061266,-480.0,0.00019397,2]
[373335989,1752951061276,-340.0,0.00019397,2]
[373335990,1752951061285,-480.0,0.00019397,2]
[373335991,1752951061295,-480.0,0.00019397,2]
[373335992,1752951061304,-204.27599894,0.00019397,2]
[373335993,1752951061313,-480.0,0.00019397,2]
[373335994,1752951061323,-480.0,0.00019397,2]
[373335995,1752951061333,-374.05,0.00019397,2]
[373335996,1752951061343,-365.04,0.00019397,2]
[373335997,1752951061353,-480.0,0.00019397,2]
[373335998,1752951061362,-480.0,0.00019397,2]
[373335999,1752951061372,-480.0,0.00019397,2]
[373336000,1752951061381,-480.0,0.00019397,2]
[373336001,1752951061391,-340.0,0.00019397,2]
[373336002,1752951061400,-320.0,0.00019397,2]
[373336003,1752951061410,-450.10617552,0.00019397,2]
[373336004,1752951061419,-480.0,0.00019397,2]
[373336005,1752951061429,-480.0,0.00019397,2]
[373336006,1752951061438,-480.0,0.00019397,2]
[373336007,1752951061448,-480.0,0.00019397,2]
[373336008,1752951061457,-480.0,0.00019397,2]
[373336009,1752951061467,-480.0,0.00019397,2]
[373336010,1752951061476,-480.0,0.00019397,2]
[373336011,1752951061487,-480.0,0.00019397,2]
[373336012,1752951061496,-480.0,0.00019397,2]
[373336013,1752951061506,-480.0,0.00019397,2]
[373336014,1752951061515,-480.0,0.00019397,2]
[373336015,1752951061525,-480.0,0.00019397,2]
[373336016,1752951061534,-480.0,0.00019397,2]
[373336017,1752951061544,-220.0,0.00019397,2]
[373336018,1752951061554,-480.0,0.00019397,2]
[373336019,1752951061563,-480.0,0.00019397,2]
[373336020,1752951061573,-400.0,0.00019397,2]
[373336021,1752951061584,-480.0,0.00019397,2]
[373336022,1752951061595,-252.25555728,0.00019397,2]
[373336023,1752951061605,-480.0,0.00019397,2]
[373336024,1752951061615,-480.0,0.00019397,2]
[373336025,1752951061624,-480.0,0.00019397,2]
[373336026,1752951061634,-480.0,0.00019397,2]
[373336027,1752951061644,-480.0,0.00019397,2]
[373336028,1752951061654,-400.0,0.00019397,2]
[373336029,1752951061663,-480.0,0.00019397,2]
[373336030,1752951061673,-480.0,0.00019397,2]
[373336031,1752951061682,-322.87,0.00019397,2]
[373336032,1752951061695,-480.0,0.00019397,2]
[373336033,1752951061704,-480.0,0.00019397,2]
[373336034,1752951061714,-976.6,0.00019397,2]
[373336035,1752951061723,-320.75594359,0.00019397,2]
[373336036,1752951061734,-453.90144181,0.00019397,2]
[373336037,1752951061744,-480.0,0.00019397,2]
[373336038,1752951061753,-480.0,0.00019397,2]
[373336039,1752951061763,-480.0,0.00019397,2]
[373336040,1752951061774,-480.0,0.00019397,2]
[373336041,1752951061787,-480.0,0.00019397,2]
[373336042,1752951061797,-480.0,0.00019397,2]
[373336043,1752951061807,-480.0,0.00019397,2]
[373336044,1752951061817,-480.0,0.00019397,2]
[373336045,1752951061827,-400.0,0.00019397,2]
[373336046,1752951061838,-480.0,0.00019397,2]
[373336047,1752951061848,-480.0,0.00019397,2]
[373336048,1752951061859,-480.0,0.00019397,2]
[373336049,1752951061870,-480.0,0.00019397,2]
[373336050,1752951061880,-480.0,0.00019397,2]
[373336051,1752951061890,-480.0,0.00019397,2]
[373336052,1752951061899,-753.98,0.00019397,2]
[373336053,1752951061910,-480.0,0.00019397,2]
[373336054,1752951061920,-480.0,0.00019397,2]
[373336055,1752951061930,-480.0,0.00019397,2]
[373336056,1752951061939,-952.18,0.00019397,2]
[373336057,1752951061949,-480.0,0.00019397,2]
[373336058,1752951061959,-480.0,0.00019397,2]
[373336059,1752951061969,-517.96,0.00019397,2]
[373336060,1752951061981,-480.0,0.00019397,2]
[373336061,1752951061991,-480.0,0.00019397,2]
[373336062,1752951062000,-480.0,0.00019397,2]
[373336063,1752951062010,-320.0,0.00019397,2]
[373336064,1752951062019,-219.59,0.00019397,2]
[373336065,1752951062028,-480.0,0.00019397,2]
[373336066,1752951062038,-480.0,0.00019397,2]
[373336067,1752951062047,-400.0,0.00019397,2]
[373336068,1752951062057,-420.0,0.00019397,2]
[373336069,1752951062067,-480.0,0.00019397,2]
[373336070,1752951062077,-494.93,0.00019397,2]
[373336071,1752951062086,-480.0,0.00019397,2]
[373336072,1752951062095,-480.0,0.00019397,2]
[373336073,1752951062105,-480.0,0.00019397,2]
[373336074,1752951062114,-480.0,0.00019397,2]
[373336075,1752951062124,-598.97,0.00019397,2]
[373336076,1752951062134,-480.0,0.00019397,2]
[373336077,1752951062143,-480.0,0.00019397,2]
[373336078,1752951062152,-360.32562599,0.00019397,2]
[373336079,1752951062161,-480.0,0.00019397,2]
[373336080,1752951062170,-480.0,0.00019397,2]
[373336081,1752951062179,-480.0,0.00019397,2]
[373336082,1752951062188,-480.0,0.00019397,2]
[373336083,1752951062197,-480.0,0.00019397,2]
[373336084,1752951062207,-480.0,0.00019397,2]
[373336085,1752951062216,-480.0,0.00019397,2]
[373336086,1752951062226,-480.0,0.00019397,2]
[373336087,1752951062235,-530.45475532,0.00019397,2]
[373336088,1752951062244,-480.0,0.00019397,2]
[373336089,1752951062253,-243.0327833,0.00019397,2]
[373336090,1752951062262,-420.0,0.00019397,2]
[373336091,1752951062271,-480.0,0.00019397,2]
[373336092,1752951062280,-480.0,0.00019397,2]
[373336093,1752951062290,-480.0,0.00019397,2]
[373336094,1752951062299,-480.0,0.00019397,2]
[373336095,1752951062309,-480.0,0.00019397,2]
[373336096,1752951062318,-480.0,0.00019397,2]
[373336097,1752951062328,-480.0,0.00019397,2]
[373336098,1752951062337,-480.0,0.00019397,2]
[373336099,1752951062346,-480.0,0.00019397,2]
[373336100,1752951062355,-480.0,0.00019397,2]
[373336101,1752951062365,-480.0,0.00019397,2]
[373336102,1752951062374,-480.0,0.00019397,2]
[373336103,1752951062383,-480.0,0.00019397,2]
[373336104,1752951062392,-480.0,0.00019397,2]
[373336105,1752951062401,-480.0,0.00019397,2]
[373336106,1752951062409,-480.0,0.00019397,2]
[373336107,1752951062418,-420.0,0.00019397,2]
[373336108,1752951062427,-480.0,0.00019397,2]
[373336109,1752951062437,-694.56,0.00019397,2]
[373336110,1752951062447,-643.95,0.00019397,2]
[373336111,1752951062456,-480.0,0.00019397,2]
[373336112,1752951062465,-1229.45,0.00019397,2]
[373336113,1752951062474,-480.0,0.00019397,2]
[373336114,1752951062485,-480.0,0.00019397,2]
[373336115,1752951062495,-444.67,0.00019397,2]
[373336116,1752951062506,-618.78,0.00019397,2]
[373336117,1752951062521,-480.0,0.00019397,2]
[373336118,1752951062530,-480.0,0.00019397,2]
[373336119,1752951062540,-424.48395373,0.00019397,2]
[373336120,1752951062549,-480.0,0.00019397,2]
[373336121,1752951062559,-480.0,0.00019397,2]
[373336122,1752951062568,-480.0,0.00019397,2]
[373336123,1752951062578,-460.0,0.00019397,2]
[373336124,1752951062586,-480.0,0.00019397,2]
[373336125,1752951062596,-440.0,0.00019397,2]
[373336126,1752951062606,-480.0,0.00019397,2]
[373336127,1752951062619,-480.0,0.00019397,2]
[373336128,1752951062628,-480.0,0.00019397,2]
[373336129,1752951062638,-400.0,0.00019397,2]
[373336130,1752951062647,-480.0,0.00019397,2]
[373336131,1752951062657,-984.12,0.00019397,2]
[373336132,1752951062667,-480.0,0.00019397,2]
[373336133,1752951062676,-480.0,0.00019397,2]
[373336134,1752951062685,-480.0,0.00019397,2]
[373336135,1752951062697,-480.0,0.00019397,2]
[373336136,1752951062707,-480.0,0.00019397,2]
[373336137,1752951062717,-480.0,0.00019397,2]
[373336138,1752951062727,-480.0,0.00019397,2]
[373336139,1752951062738,-480.0,0.00019397,2]
[373336140,1752951062748,-480.0,0.00019397,2]
[373336141,1752951062757,-480.0,0.00019397,2]
[373336142,1752951062767,-480.0,0.00019397,2]
[373336143,1752951062777,-480.0,0.00019397,2]
[373336144,1752951062787,-400.0,0.00019397,2]
[373336145,1752951062797,-480.0,0.00019397,2]
[373336146,1752951062807,-480.0,0.00019397,2]
[373336147,1752951062816,-480.0,0.00019397,2]
[373336148,1752951062826,-493.08,0.00019397,2]
[373336149,1752951062835,-480.0,0.00019397,2]
[373336150,1752951062845,-400.0,0.00019397,2]
[373336151,1752951062917,-480.0,0.00019397,2]
[373336152,1752951062926,-480.0,0.00019397,2]
[373336153,1752951062935,-480.0,0.00019397,2]
[373336154,1752951062945,-480.0,0.00019397,2]
[373336155,1752951062954,-480.0,0.00019397,2]
[373336156,1752951062963,-969.76,0.00019397,2]
[373336157,1752951062973,-480.0,0.00019397,2]
[373336158,1752951062982,-480.0,0.00019397,2]
[373336159,1752951062991,-480.0,0.00019397,2]
[373336160,1752951063000,-607.72,0.00019397,2]
[373336161,1752951063009,-480.0,0.00019397,2]
[373336162,1752951063019,-480.0,0.00019397,2]
[373336163,1752951063028,-480.0,0.00019397,2]
[373336164,1752951063037,-480.0,0.00019397,2]
[373336165,1752951063047,-480.0,0.00019397,2]
[373336166,1752951063056,-480.0,0.00019397,2]
[373336167,1752951063065,-480.0,0.00019397,2]
[373336168,1752951063075,-480.0,0.00019397,2]
[373336169,1752951063084,-480.0,0.00019397,2]
[373336170,1752951063093,-380.0,0.00019397,2]
[373336171,1752951063103,-480.0,0.00019397,2]
[373336172,1752951063112,-480.0,0.00019397,2]
[373336173,1752951063121,-480.0,0.00019397,2]
[373336174,1752951063131,-480.0,0.00019397,2]
[373336175,1752951063141,-480.0,0.00019397,2]
[373336176,1752951063154,-538.74,0.00019397,2]
[373336177,1752951063163,-480.0,0.00019397,2]
[373336178,1752951063173,-480.0,0.00019397,2]
[373336179,1752951063182,-480.0,0.00019397,2]
[373336180,1752951063191,-480.0,0.00019397,2]
[373336181,1752951063200,-480.0,0.00019397,2]
[373336182,1752951063210,-480.0,0.00019397,2]
[373336183,1752951063221,-480.0,0.00019397,2]
[373336184,1752951063230,-317.03,0.00019397,2]
[373336185,1752951063240,-252.21,0.00019397,2]
[373336186,1752951063250,-480.0,0.00019397,2]
[373336187,1752951063259,-480.0,0.00019397,2]
[373336188,1752951063269,-480.0,0.00019397,2]
[373336189,1752951063279,-480.0,0.00019397,2]
[373336190,1752951063289,-540.78,0.00019397,2]
[373336191,1752951063298,-596.33,0.00019397,2]
[373336192,1752951063308,-480.0,0.00019397,2]
[373336193,1752951063317,-480.0,0.00019397,2]
[373336194,1752951063328,-480.0,0.00019397,2]
[373336195,1752951063338,-480.0,0.00019397,2]
[373336196,1752951063347,-480.0,0.00019397,2]
[373336197,1752951063357,-480.0,0.00019397,2]
[373336198,1752951063366,-480.0,0.00019397,2]
[373336199,1752951063376,-480.0,0.00019397,2]
[373336200,1752951063385,-480.0,0.00019397,2]
[373336201,1752951063395,-480.0,0.00019397,2]
[373336202,1752951063404,-595.95,0.00019397,2]
[373336203,1752951063414,-480.0,0.00019397,2]
[373336204,1752951063423,-480.0,0.00019397,2]
[373336205,1752951063434,-480.0,0.00019397,2]
[373336206,1752951063443,-480.0,0.00019397,2]
[373336207,1752951063452,-315.15,0.00019397,2]
[373336208,1752951063462,-480.0,0.00019397,2]
[373336209,1752951063471,-480.0,0.00019397,2]
[373336210,1752951063481,-480.0,0.00019397,2]
[373336211,1752951063490,-480.0,0.00019397,2]
[373336212,1752951063500,-480.0,0.00019397,2]
[373336213,1752951063510,-480.0,0.00019397,2]
[373336214,1752951063519,-273.63214397,0.00019397,2]
[373336215,1752951063530,-498.77,0.00019397,2]
[373336216,1752951063540,-480.0,0.00019397,2]
[373336217,1752951063550,-480.0,0.00019397,2]
[373336218,1752951063560,-480.0,0.00019397,2]
[373336219,1752951063570,-480.0,0.00019397,2]
[373336220,1752951063580,-480.0,0.00019397,2]
[373336221,1752951063590,-480.0,0.00019397,2]
[373336222,1752951063599,-480.0,0.00019397,2]
[373336223,1752951063609,-480.0,0.00019397,2]
[373336224,1752951063619,-480.0,0.00019397,2]
[373336225,1752951063629,-480.0,0.00019397,2]
[373336226,1752951063638,-480.0,0.00019397,2]
[373336227,1752951063648,-480.0,0.00019397,2]
[373336228,1752951063657,-396.01,0.00019397,2]
[373336229,1752951063667,-480.0,0.00019397,2]
[373336230,1752951063677,-480.0,0.00019397,2]
[373336231,1752951063689,-480.0,0.00019397,2]
[373336232,1752951063702,-564.38,0.00019397,2]
[373336233,1752951063712,-480.0,0.00019397,2]
[373336234,1752951063722,-561.77,0.00019397,2]
[373336235,1752951063734,-480.0,0.00019397,2]
[373336236,1752951063744,-480.0,0.00019397,2]
[373336237,1752951063754,-480.0,0.00019397,2]
[373336238,1752951063764,-480.0,0.00019397,2]
[373336239,1752951063773,-480.0,0.00019397,2]
[373336240,1752951063783,-480.0,0.00019397,2]
[373336241,1752951063793,-480.0,0.00019397,2]
[373336242,1752951063803,-480.0,0.00019397,2]
[373336243,1752951063813,-480.0,0.00019397,2]
[373336244,1752951063822,-480.0,0.00019397,2]
[373336245,1752951063832,-584.84,0.00019397,2]
[373336246,1752951063841,-625.76,0.00019397,2]
[373336247,1752951063851,-480.0,0.00019397,2]
[373336248,1752951063860,-480.0,0.00019397,2]
[373336249,1752951063871,-480.0,0.00019397,2]
[373336250,1752951063882,-899.17,0.00019397,2]
[373336251,1752951063893,-480.0,0.00019397,2]
[373336252,1752951063904,-300.0,0.00019397,2]
[373336253,1752951063914,-300.0,0.00019397,2]
[373336254,1752951063924,-480.0,0.00019397,2]
[373336255,1752951063933,-480.0,0.00019397,2]
[373336256,1752951063943,-480.0,0.00019397,2]
[373336257,1752951063953,-480.0,0.00019397,2]
[373336258,1752951063963,-944.76,0.00019397,2]
[373336259,1752951063972,-480.0,0.00019397,2]
[373336260,1752951063981,-480.0,0.00019397,2]
[373336261,1752951063991,-491.56,0.00019397,2]
[373336262,1752951064000,-480.0,0.00019397,2]
[373336263,1752951064011,-480.0,0.00019397,2]
[373336264,1752951064023,-480.0,0.00019397,2]
[373336265,1752951064033,-2055.11,0.00019397,2]
[373336266,1752951064043,-480.0,0.00019397,2]
[373336267,1752951064057,-1163.514533,0.00019397,2]
[373336268,1752951064073,-315.88287583,0.00019397,2]
[373336269,1752951064083,-480.0,0.00019397,2]
[373336270,1752951064093,-740.49,0.00019397,2]
[373336271,1752951064103,-667.95,0.00019397,2]
[373336272,1752951064113,-1039.59,0.00019397,2]
[373336273,1752951064123,-480.0,0.00019397,2]
[373336274,1752951064133,-500.71,0.00019397,2]
[373336275,1752951064143,-872.76,0.00019397,2]
[373336276,1752951064152,-1098.520901,0.00019397,2]
[373336277,1752951064162,-1076.103525,0.00019397,2]
[373336278,1752951064172,-480.0,0.00019397,2]
[373336279,1752951064182,-1168.93,0.00019397,2]
[373336280,1752951064192,-480.0,0.00019397,2]
[373336281,1752951064202,-923.58,0.00019397,2]
[373336282,1752951064211,-480.0,0.00019397,2]
[373336283,1752951064221,-480.0,0.00019397,2]
[373336284,1752951064231,-891.2,0.00019397,2]
[373336285,1752951064240,-1331.66,0.00019397,2]
[373336286,1752951064251,-4036.36,0.00019397,2]
[373336287,1752951064261,-571.4,0.00019397,2]
[373336288,1752951064270,-480.0,0.00019397,2]
[373336289,1752951064279,-480.0,0.00019397,2]
[373336290,1752951064289,-932.44,0.00019397,2]
[373336291,1752951064298,-480.0,0.00019397,2]
[373336292,1752951064308,-480.0,0.00019397,2]
[373336293,1752951064317,-245.93366067,0.00019397,2]
[373336294,1752951064326,-480.0,0.00019397,2]
[373336295,1752951064336,-1082.18,0.00019397,2]
[373336296,1752951064345,-480.0,0.00019397,2]
[373336297,1752951064355,-480.0,0.00019397,2]
[373336298,1752951064365,-480.0,0.00019397,2]
[373336299,1752951064374,-480.0,0.00019397,2]
[373336300,1752951064383,-1769.75,0.00019397,2]
[373336301,1752951064392,-660.12,0.00019397,2]
[373336302,1752951064402,-935.22,0.00019397,2]
[373336303,1752951064411,-480.0,0.00019397,2]
[373336304,1752951064421,-1006.09,0.00019397,2]
[373336305,1752951064430,-480.0,0.00019397,2]
[373336306,1752951064440,-480.0,0.00019397,2]
[373336307,1752951064449,-480.0,0.00019397,2]
[373336308,1752951064459,-598.02,0.00019397,2]
[373336309,1752951064468,-480.0,0.00019397,2]
[373336310,1752951064477,-1289.68,0.00019397,2]
[373336311,1752951064487,-320.62,0.00019397,2]
[373336312,1752951064497,-730.1,0.00019397,2]
[373336313,1752951064506,-1350.29,0.00019397,2]
[373336314,1752951064517,-1420.69,0.00019397,2]
[373336315,1752951064526,-300.0,0.00019397,2]
[373336316,1752951064535,-480.0,0.00019397,2]
[373336317,1752951064545,-1057.02,0.00019397,2]
[373336318,1752951064555,-480.0,0.00019397,2]
[373336319,1752951064565,-498.46,0.00019397,2]
[373336320,1752951064574,-420.0,0.00019397,2]
[373336321,1752951064584,-714.44,0.00019397,2]
[373336322,1752951064593,-480.0,0.00019397,2]
[373336323,1752951064603,-480.0,0.00019397,2]
[373336324,1752951064612,-480.0,0.00019397,2]
[373336325,1752951064622,-480.0,0.00019397,2]
[373336326,1752951064631,-480.0,0.00019397,2]
[373336327,1752951064641,-480.0,0.00019397,2]
[373336328,1752951064650,-480.0,0.00019397,2]
[373336329,1752951064659,-1044.2,0.00019397,2]
[373336330,1752951064668,-480.0,0.00019397,2]
[373336331,1752951064678,-480.0,0.00019397,2]
[373336332,1752951064688,-480.0,0.00019397,2]
[373336333,1752951064702,-480.0,0.00019397,2]
[373336334,1752951064712,-1042.38,0.00019397,2]
[373336335,1752951064722,-480.0,0.00019397,2]
[373336336,1752951064732,-728.63,0.00019397,2]
[373336337,1752951064742,-1734.68,0.00019397,2]
[373336338,1752951064751,-480.0,0.00019397,2]
[373336339,1752951064762,-832.36,0.00019397,2]
[373336340,1752951064772,-480.0,0.00019397,2]
[373336341,1752951064782,-480.0,0.00019397,2]
[373336342,1752951064793,-480.0,0.00019397,2]
[373336343,1752951064803,-480.0,0.00019397,2]
[373336344,1752951064812,-1215.27,0.00019397,2]
[373336345,1752951064821,-480.0,0.00019397,2]
[373336346,1752951064830,-480.0,0.00019397,2]
[373336347,1752951064840,-1468.88,0.00019397,2]
[373336348,1752951064850,-400.0,0.00019397,2]
[373336349,1752951064860,-480.0,0.00019397,2]
[373336350,1752951064870,-480.0,0.00019397,2]
[373336351,1752951064880,-745.43,0.00019397,2]
[373336352,1752951064889,-400.0,0.00019397,2]
[373336353,1752951064899,-480.0,0.00019397,2]
[373336354,1752951064908,-1919.49,0.00019397,2]
[373336355,1752951064917,-582.8,0.00019397,2]
[373336356,1752951064926,-772.14,0.00019397,2]
[373336357,1752951064936,-911.99,0.00019397,2]
[373336358,1752951064945,-480.0,0.00019397,2]
[373336359,1752951064954,-480.0,0.00019397,2]
[373336360,1752951064963,-480.0,0.00019397,2]
[373336361,1752951064973,-811.66,0.00019397,2]
[373336362,1752951064982,-802.36,0.00019397,2]
[373336363,1752951064991,-222.57015889,0.00019397,2]
[373336364,1752951065000,-480.0,0.00019397,2]
[373336365,1752951065010,-480.0,0.00019397,2]
[373336366,1752951065019,-480.0,0.00019397,2]
[373336367,1752951065029,-2072.01,0.00019397,2]
[373336368,1752951065038,-2070.42,0.00019397,2]
[373336369,1752951065049,-2808.72,0.00019397,2]
[373336370,1752951065058,-480.0,0.00019397,2]
[373336371,1752951065068,-682.12,0.00019397,2]
[373336372,1752951065077,-529.4,0.00019397,2]
[373336373,1752951065089,-480.0,0.00019397,2]
[373336374,1752951065098,-480.0,0.00019397,2]
[373336375,1752951065108,-480.0,0.00019397,2]
[373336376,1752951065118,-1647.33,0.00019397,2]
[373336377,1752951065128,-364.12747455,0.00019397,2]
[373336378,1752951065139,-480.0,0.00019397,2]
[373336379,1752951065147,-1227.72,0.00019397,2]
[373336380,1752951065157,-480.0,0.00019397,2]
[373336381,1752951065166,-1003.58,0.00019397,2]
[373336382,1752951065176,-480.0,0.00019397,2]
[373336383,1752951065185,-1320.44,0.00019397,2]
[373336384,1752951065194,-790.54,0.00019397,2]
[373336385,1752951065204,-480.0,0.00019397,2]
[373336386,1752951065213,-480.0,0.00019397,2]
[373336387,1752951065223,-480.0,0.00019397,2]
[373336388,1752951065232,-1921.26,0.00019397,2]
[373336389,1752951065241,-480.0,0.00019397,2]
[373336390,1752951065250,-480.0,0.00019397,2]
[373336391,1752951065260,-480.0,0.00019397,2]
[373336392,1752951065269,-480.0,0.00019397,2]
[373336393,1752951065278,-275.6540266,0.00019397,2]
[373336394,1752951065287,-480.0,0.00019397,2]
[373336395,1752951065296,-480.0,0.00019397,2]
[373336396,1752951065305,-480.0,0.00019397,2]
[373336397,1752951065315,-480.0,0.00019397,2]
[373336398,1752951065324,-744.36,0.00019397,2]
[373336399,1752951065333,-480.0,0.00019397,2]
[373336400,1752951065342,-1066.46,0.00019397,2]
[373336401,1752951065352,-480.0,0.00019397,2]
[373336402,1752951065363,-480.0,0.00019397,2]
[373336403,1752951065375,-480.0,0.00019397,2]
[373336404,1752951065384,-420.0,0.00019397,2]
[373336405,1752951065393,-671.12,0.00019397,2]
[373336406,1752951065404,-480.0,0.00019397,2]
[373336407,1752951065413,-480.0,0.00019397,2]
[373336408,1752951065425,-606.46,0.00019397,2]
[373336409,1752951065436,-3397.68,0.00019397,2]
[373336410,1752951065447,-480.0,0.00019397,2]
[373336411,1752951065459,-3911.5,0.00019397,2]
[373336412,1752951065470,-480.0,0.00019397,2]
[373336413,1752951065482,-537.22,0.00019397,2]
[373336414,1752951065492,-480.0,0.00019397,2]
[373336415,1752951065502,-1207.92,0.00019397,2]
[373336416,1752951065511,-480.0,0.00019397,2]
[373336417,1752951065521,-480.0,0.00019397,2]
[373336418,1752951065531,-480.0,0.00019397,2]
[373336419,1752951065541,-480.0,0.00019397,2]
[373336420,1752951065551,-650.88,0.00019397,2]
[373336421,1752951065561,-696.33,0.00019397,2]
[373336422,1752951065571,-815.11,0.00019397,2]
[373336423,1752951065582,-480.0,0.00019397,2]
[373336424,1752951065592,-480.0,0.00019397,2]
[373336425,1752951065602,-480.0,0.00019397,2]
[373336426,1752951065612,-1597.92,0.00019397,2]
[373336427,1752951065622,-480.0,0.00019397,2]
[373336428,1752951065631,-911.03,0.00019397,2]
[373336429,1752951065641,-480.0,0.00019397,2]
[373336430,1752951065651,-480.0,0.00019397,2]
[373336431,1752951065663,-320.0,0.00019397,2]
[373336432,1752951065675,-480.0,0.00019397,2]
[373336433,1752951065687,-1507.64,0.00019397,2]
[373336434,1752951065704,-480.0,0.00019397,2]
[373336435,1752951065715,-480.0,0.00019397,2]
[373336436,1752951065724,-480.0,0.00019397,2]
[373336437,1752951065735,-480.0,0.00019397,2]
[373336438,1752951065745,-480.0,0.00019397,2]
[373336439,1752951065755,-480.0,0.00019397,2]
[373336440,1752951065766,-3506.64,0.00019397,2]
[373336441,1752951065776,-480.0,0.00019397,2]
[373336442,1752951065786,-380.0,0.00019397,2]
[373336443,1752951065795,-955.02,0.00019397,2]
[373336444,1752951065806,-860.57,0.00019397,2]
[373336445,1752951065818,-684.08,0.00019397,2]
[373336446,1752951065839,-480.0,0.00019397,2]
[373336447,1752951065852,-480.0,0.00019397,2]
[373336448,1752951065869,-1174.8,0.00019397,2]
[373336449,1752951065879,-480.0,0.00019397,2]
[373336450,1752951065889,-1865.79,0.00019397,2]
[373336451,1752951065899,-320.0,0.00019397,2]
[373336452,1752951065910,-480.0,0.00019397,2]
[373336453,1752951065919,-151.546263,0.00019397,2]
[373336454,1752951065929,-480.0,0.00019397,2]
[373336455,1752951065938,-480.0,0.00019397,2]
[373336456,1752951065948,-480.0,0.00019397,2]
[373336457,1752951065957,-911.28,0.00019397,2]
[373336458,1752951065967,-480.0,0.00019397,2]
[373336459,1752951065977,-2051.16,0.00019397,2]
[373336460,1752951065988,-480.0,0.00019397,2]
[373336461,1752951065997,-619.72,0.00019397,2]
[373336462,1752951066007,-480.0,0.00019397,2]
[373336463,1752951066017,-480.0,0.00019397,2]
[373336464,1752951066027,-480.0,0.00019397,2]
[373336465,1752951066037,-480.0,0.00019397,2]
[373336466,1752951066048,-1080.99,0.00019397,2]
[373336467,1752951066058,-154.072263,0.00019397,2]
[373336468,1752951066068,-154.670496,0.00019397,2]
[373336469,1752951066078,-480.0,0.00019397,2]
[373336470,1752951066087,-1344.93,0.00019397,2]
[373336471,1752951066097,-911.85,0.00019397,2]
[373336472,1752951066107,-973.43,0.00019397,2]
[373336473,1752951066116,-480.0,0.00019397,2]
[373336474,1752951066126,-738.53,0.00019397,2]
[373336475,1752951066135,-480.0,0.00019397,2]
[373336476,1752951066145,-548.81,0.00019397,2]
[373336477,1752951066154,-480.0,0.00019397,2]
[373336478,1752951066164,-480.0,0.00019397,2]
[373336479,1752951066174,-480.0,0.00019397,2]
[373336480,1752951066183,-1284.48,0.00019397,2]
[373336481,1752951066193,-629.65,0.00019397,2]
[373336482,1752951066202,-527.51,0.00019397,2]
[373336483,1752951066212,-1885.87,0.00019397,2]
[373336484,1752951066222,-480.0,0.00019397,2]
[373336485,1752951066231,-212.18,0.00019397,2]
[373336486,1752951066241,-2159.57,0.00019397,2]